[Event "Early-Titled-Tuesday-Blitz-March-05-2024"]
[Site "Chess.com"]
[Date "2024.03.05"]
[Round "4"]
[White "chess_blitz00"]
[Black "Leonid_Starozhilov"]
[Result "0-1"]
[WhiteElo "2528"]
[BlackElo "2711"]
[TimeControl "180+1"]
[EndTime "8:39:43 PST"]
[Termination "Leonid_Starozhilov won by resignation"]

1. e4 {[%clk 0:02:59.1]} 1... g6 {[%clk 0:02:59.3]} 2. d4 {[%clk 0:02:57]} 2...
Bg7 {[%clk 0:03:00.2]} 3. Nc3 {[%clk 0:02:57.2]} 3... d6 {[%clk 0:03:00.5]} 4.
h4 {[%clk 0:02:54.4]} 4... h5 {[%clk 0:03:00.2]} 5. Be3 {[%clk 0:02:50]} 5... a6
{[%clk 0:02:58.5]} 6. Nh3 {[%clk 0:02:47]} 6... Bxh3 {[%clk 0:02:58.3]} 7. Rxh3
{[%clk 0:02:47.9]} 7... Nc6 {[%clk 0:02:57.8]} 8. Be2 {[%clk 0:02:34.4]} 8...
Nf6 {[%clk 0:02:57.5]} 9. f3 {[%clk 0:02:28.8]} 9... b5 {[%clk 0:02:54.5]} 10.
Qd2 {[%clk 0:01:58.2]} 10... e5 {[%clk 0:02:40.1]} 11. d5 {[%clk 0:01:07.3]}
11... Nd4 {[%clk 0:02:39.6]} 12. Bxd4 {[%clk 0:00:51.4]} 12... exd4 {[%clk
0:02:40.5]} 13. Qxd4 {[%clk 0:00:51.7]} 13... O-O {[%clk 0:02:40.7]} 14. Qd2
{[%clk 0:00:48.3]} 14... Kh7 {[%clk 0:02:28.5]} 15. O-O-O {[%clk 0:00:43.1]}
15... Bh6 {[%clk 0:02:24.3]} 16. f4 {[%clk 0:00:43.5]} 16... b4 {[%clk
0:02:24.8]} 17. Nb1 {[%clk 0:00:39.1]} 17... Nxe4 {[%clk 0:02:24.9]} 18. Qe3
{[%clk 0:00:35.7]} 18... Re8 {[%clk 0:02:09.9]} 19. Qf3 {[%clk 0:00:35.5]} 19...
Qf6 {[%clk 0:02:05.7]} 20. Bd3 {[%clk 0:00:17.4]} 20... Qxf4+ {[%clk 0:02:02.1]}
21. Qxf4 {[%clk 0:00:17.7]} 21... Bxf4+ {[%clk 0:02:02.4]} 22. Nd2 {[%clk
0:00:18.2]} 22... Nxd2 {[%clk 0:02:00.5]} 23. g3 {[%clk 0:00:17.7]} 23... Bh6
{[%clk 0:01:57.4]} 24. g4 {[%clk 0:00:17.6]} 24... hxg4 {[%clk 0:01:56.7]} 25.
Rhh1 {[%clk 0:00:16.5]} 25... Ne4+ {[%clk 0:01:54.4]} 26. Kb1 {[%clk 0:00:16.8]}
26... Nf2 {[%clk 0:01:55.1]} 27. h5 {[%clk 0:00:17.2]} 0-1

[Event "Early-Titled-Tuesday-Blitz-March-05-2024"]
[Site "Chess.com"]
[Date "2024.03.05"]
[Round "4"]
[White "frequentblunders"]
[Black "Flaccidmoves"]
[Result "0-1"]
[WhiteElo "2159"]
[BlackElo "2449"]
[TimeControl "180+1"]
[EndTime "8:39:46 PST"]
[Termination "Flaccidmoves won by resignation"]

1. d3 {[%clk 0:02:58.7]} 1... e5 {[%clk 0:02:58.2]} 2. f4 {[%clk 0:02:59.6]}
2... Nc6 {[%clk 0:02:41.9]} 3. e4 {[%clk 0:03:00.1]} 3... d5 {[%clk 0:02:33.9]}
4. exd5 {[%clk 0:02:56.5]} 4... Qxd5 {[%clk 0:02:34.8]} 5. Nc3 {[%clk
0:02:56.5]} 5... Bb4 {[%clk 0:02:34.7]} 6. Nf3 {[%clk 0:02:55.3]} 6... exf4
{[%clk 0:02:01.2]} 7. Bxf4 {[%clk 0:02:52.5]} 7... Nf6 {[%clk 0:02:01.6]} 8. Be2
{[%clk 0:02:40.7]} 8... O-O {[%clk 0:01:58]} 9. O-O {[%clk 0:02:40.9]} 9... Bxc3
{[%clk 0:01:56.2]} 10. bxc3 {[%clk 0:02:41]} 10... Qc5+ {[%clk 0:01:41]} 11. Kh1
{[%clk 0:02:35.5]} 11... Qxc3 {[%clk 0:01:39.4]} 12. Bxc7 {[%clk 0:02:33.8]}
12... Nd5 {[%clk 0:01:31.1]} 13. Bg3 {[%clk 0:01:56.9]} 13... Ne3 {[%clk
0:01:06]} 14. Qd2 {[%clk 0:01:41.9]} 14... Qxd2 {[%clk 0:01:04.6]} 15. Nxd2
{[%clk 0:01:42.8]} 15... Nxf1 {[%clk 0:01:05.1]} 16. Rxf1 {[%clk 0:01:40.7]}
16... Be6 {[%clk 0:01:05.5]} 17. Nb3 {[%clk 0:01:33.9]} 17... a5 {[%clk
0:01:00.5]} 18. a4 {[%clk 0:01:33.1]} 18... Bxb3 {[%clk 0:00:58]} 19. cxb3
{[%clk 0:01:34]} 19... Nd4 {[%clk 0:00:58.6]} 20. Bf3 {[%clk 0:01:32.8]} 20...
Nxf3 {[%clk 0:00:58.2]} 21. gxf3 {[%clk 0:01:31.6]} 21... Rac8 {[%clk
0:00:55.3]} 22. Be1 {[%clk 0:01:22.2]} 22... Rfd8 {[%clk 0:00:54.2]} 23. Bxa5
{[%clk 0:01:21.4]} 23... Rxd3 {[%clk 0:00:54.2]} 24. b4 {[%clk 0:01:18]} 24...
Ra3 {[%clk 0:00:53.2]} 0-1

[Event "Early-Titled-Tuesday-Blitz-March-05-2024"]
[Site "Chess.com"]
[Date "2024.03.05"]
[Round "4"]
[White "AlexeiShirov"]
[Black "ninguno46"]
[Result "1-0"]
[WhiteElo "2837"]
[BlackElo "2529"]
[TimeControl "180+1"]
[EndTime "8:39:49 PST"]
[Termination "AlexeiShirov won by resignation"]

1. e4 {[%clk 0:03:00.9]} 1... c5 {[%clk 0:02:59.1]} 2. Nf3 {[%clk 0:03:01]} 2...
Nc6 {[%clk 0:02:59.5]} 3. d4 {[%clk 0:03:01.6]} 3... cxd4 {[%clk 0:02:59.8]} 4.
Nxd4 {[%clk 0:03:02.2]} 4... g6 {[%clk 0:03:00.1]} 5. Nc3 {[%clk 0:03:00.5]}
5... Bg7 {[%clk 0:02:59.7]} 6. Be3 {[%clk 0:03:00.6]} 6... Nf6 {[%clk 0:03:00]}
7. Bc4 {[%clk 0:03:01]} 7... Qa5 {[%clk 0:03:00.1]} 8. O-O {[%clk 0:02:52.6]}
8... O-O {[%clk 0:02:59.6]} 9. Nb3 {[%clk 0:02:52]} 9... Qc7 {[%clk 0:02:54]}
10. Nb5 {[%clk 0:02:48.1]} 10... Qd8 {[%clk 0:02:48.8]} 11. f3 {[%clk
0:02:40.4]} 11... d6 {[%clk 0:02:25.1]} 12. Qd2 {[%clk 0:02:36.3]} 12... Bd7
{[%clk 0:02:21.2]} 13. N5d4 {[%clk 0:02:35]} 13... Nxd4 {[%clk 0:01:55.5]} 14.
Bxd4 {[%clk 0:02:31.6]} 14... Qc7 {[%clk 0:01:45]} 15. Be2 {[%clk 0:02:21.7]}
15... b5 {[%clk 0:01:35.5]} 16. Qa5 {[%clk 0:02:02.5]} 16... Qxa5 {[%clk
0:01:22.7]} 17. Nxa5 {[%clk 0:02:01.8]} 17... Rfc8 {[%clk 0:01:22.2]} 18. c3
{[%clk 0:02:00.9]} 18... e5 {[%clk 0:01:10]} 19. Bf2 {[%clk 0:02:00.5]} 19... d5
{[%clk 0:01:09.8]} 20. exd5 {[%clk 0:02:00]} 20... Nxd5 {[%clk 0:01:08.9]} 21.
Rfd1 {[%clk 0:02:00]} 21... Nf4 {[%clk 0:00:50.1]} 22. Rxd7 {[%clk 0:01:58.1]}
22... Nxe2+ {[%clk 0:00:49.7]} 23. Kf1 {[%clk 0:01:58.1]} 23... Nf4 {[%clk
0:00:48.3]} 24. Rad1 {[%clk 0:01:57.2]} 24... a6 {[%clk 0:00:42.1]} 25. Nb7
{[%clk 0:01:46.6]} 25... Ne6 {[%clk 0:00:37.3]} 26. Nd6 {[%clk 0:01:44.2]} 26...
f6 {[%clk 0:00:21.3]} 27. Nxc8 {[%clk 0:01:43.6]} 1-0

[Event "Early-Titled-Tuesday-Blitz-March-05-2024"]
[Site "Chess.com"]
[Date "2024.03.05"]
[Round "4"]
[White "noblerone"]
[Black "Aleksandar-Topalov"]
[Result "1-0"]
[WhiteElo "2519"]
[BlackElo "2339"]
[TimeControl "180+1"]
[EndTime "8:39:49 PST"]
[Termination "noblerone won by resignation"]

1. d4 {[%clk 0:03:00.9]} 1... Nf6 {[%clk 0:02:59.1]} 2. Nf3 {[%clk 0:02:56.1]}
2... g6 {[%clk 0:02:58.2]} 3. Bg5 {[%clk 0:02:55.7]} 3... Bg7 {[%clk 0:02:58]}
4. Nbd2 {[%clk 0:02:56.4]} 4... d6 {[%clk 0:02:49.2]} 5. c3 {[%clk 0:02:56.1]}
5... O-O {[%clk 0:02:48.5]} 6. e4 {[%clk 0:02:48.8]} 6... c5 {[%clk 0:02:45.2]}
7. dxc5 {[%clk 0:02:49.7]} 7... dxc5 {[%clk 0:02:45.1]} 8. Bc4 {[%clk
0:02:50.3]} 8... Nc6 {[%clk 0:02:43.8]} 9. Qe2 {[%clk 0:02:47.7]} 9... Qc7
{[%clk 0:02:42.8]} 10. O-O {[%clk 0:02:33.7]} 10... b6 {[%clk 0:02:42.7]} 11.
Qe3 {[%clk 0:02:23.1]} 11... Bb7 {[%clk 0:02:30.3]} 12. h3 {[%clk 0:02:21.7]}
12... Rad8 {[%clk 0:02:23.3]} 13. Bh6 {[%clk 0:02:18.6]} 13... Ne5 {[%clk
0:02:10]} 14. Nxe5 {[%clk 0:01:54.9]} 14... Qxe5 {[%clk 0:02:09.1]} 15. Bf4
{[%clk 0:01:46.7]} 15... Qh5 {[%clk 0:01:45.3]} 16. Be2 {[%clk 0:01:35.1]} 16...
Qh4 {[%clk 0:01:13.3]} 17. Bg5 {[%clk 0:01:22.3]} 1-0

[Event "Early-Titled-Tuesday-Blitz-March-05-2024"]
[Site "Chess.com"]
[Date "2024.03.05"]
[Round "4"]
[White "ActorXu"]
[Black "NikoTheodorou"]
[Result "1/2-1/2"]
[WhiteElo "2857"]
[BlackElo "3065"]
[TimeControl "180+1"]
[EndTime "8:39:50 PST"]
[Termination "Game drawn by repetition"]

1. e4 {[%clk 0:02:58.3]} 1... c5 {[%clk 0:02:56.8]} 2. Nf3 {[%clk 0:02:58.1]}
2... Nc6 {[%clk 0:02:57.5]} 3. Bb5 {[%clk 0:02:58.1]} 3... e6 {[%clk 0:02:58.1]}
4. O-O {[%clk 0:02:57]} 4... Nd4 {[%clk 0:02:58.6]} 5. Nxd4 {[%clk 0:02:53.3]}
5... cxd4 {[%clk 0:02:59.5]} 6. Re1 {[%clk 0:02:51.3]} 6... a6 {[%clk
0:03:00.4]} 7. Bf1 {[%clk 0:02:51.5]} 7... Bc5 {[%clk 0:03:00.2]} 8. d3 {[%clk
0:02:45.7]} 8... Ne7 {[%clk 0:02:58.2]} 9. Nd2 {[%clk 0:02:43.9]} 9... b5 {[%clk
0:02:57]} 10. Nf3 {[%clk 0:02:39]} 10... O-O {[%clk 0:02:52.1]} 11. c3 {[%clk
0:02:36.7]} 11... Nc6 {[%clk 0:02:52.2]} 12. cxd4 {[%clk 0:02:22.2]} 12... Nxd4
{[%clk 0:02:53.1]} 13. Be3 {[%clk 0:02:22.4]} 13... Qb6 {[%clk 0:02:42.7]} 14.
Rc1 {[%clk 0:02:21.5]} 14... Nxf3+ {[%clk 0:02:41.1]} 15. Qxf3 {[%clk
0:02:21.2]} 15... Bd4 {[%clk 0:02:40.8]} 16. Bxd4 {[%clk 0:01:58.6]} 16... Qxd4
{[%clk 0:02:41.7]} 17. Rc2 {[%clk 0:01:58.8]} 17... Bb7 {[%clk 0:02:38.8]} 18.
Qe3 {[%clk 0:01:58.6]} 18... Qxe3 {[%clk 0:02:36.6]} 19. fxe3 {[%clk 0:01:58.7]}
19... Bc6 {[%clk 0:02:13.9]} 20. e5 {[%clk 0:01:54.5]} 20... f6 {[%clk
0:02:03.4]} 21. exf6 {[%clk 0:01:53.1]} 21... Rxf6 {[%clk 0:02:04.3]} 22. g3
{[%clk 0:01:50]} 22... Raf8 {[%clk 0:01:30.5]} 23. Bg2 {[%clk 0:01:49.8]} 23...
Bxg2 {[%clk 0:01:30.9]} 24. Kxg2 {[%clk 0:01:50.2]} 24... e5 {[%clk 0:01:31.8]}
25. e4 {[%clk 0:01:43.6]} 25... Rf3 {[%clk 0:01:24.8]} 26. Rd1 {[%clk
0:01:35.2]} 26... Re3 {[%clk 0:01:25.1]} 27. Rf2 {[%clk 0:01:28.8]} 27... Rc8
{[%clk 0:01:13.7]} 28. Rfd2 {[%clk 0:01:24.5]} 28... Rf8 {[%clk 0:01:12.6]} 29.
Rf2 {[%clk 0:01:23.4]} 29... Rc8 {[%clk 0:01:12.8]} 30. Rfd2 {[%clk 0:01:01.7]}
30... Rf8 {[%clk 0:01:12.5]} 31. Rf2 {[%clk 0:00:58]} 1/2-1/2

[Event "Early-Titled-Tuesday-Blitz-March-05-2024"]
[Site "Chess.com"]
[Date "2024.03.05"]
[Round "4"]
[White "publicaccountcze"]
[Black "Quattroporte300"]
[Result "0-1"]
[WhiteElo "2213"]
[BlackElo "2456"]
[TimeControl "180+1"]
[EndTime "8:39:51 PST"]
[Termination "Quattroporte300 won by checkmate"]

1. e4 {[%clk 0:03:00.9]} 1... c5 {[%clk 0:02:56.5]} 2. Nf3 {[%clk 0:02:58.5]}
2... d6 {[%clk 0:02:47.3]} 3. d4 {[%clk 0:02:57.8]} 3... cxd4 {[%clk 0:02:47.2]}
4. Qxd4 {[%clk 0:02:58]} 4... a6 {[%clk 0:02:45.3]} 5. Nc3 {[%clk 0:02:55.9]}
5... Nc6 {[%clk 0:02:45.8]} 6. Qe3 {[%clk 0:02:56.4]} 6... Nf6 {[%clk
0:02:46.1]} 7. a4 {[%clk 0:02:41]} 7... g6 {[%clk 0:02:46.1]} 8. Bc4 {[%clk
0:02:40.2]} 8... Bg7 {[%clk 0:02:46.5]} 9. O-O {[%clk 0:02:25]} 9... O-O {[%clk
0:02:47]} 10. Qe2 {[%clk 0:02:02.5]} 10... Bg4 {[%clk 0:02:44.9]} 11. h3 {[%clk
0:01:59.4]} 11... Nd4 {[%clk 0:02:43.6]} 12. Qd1 {[%clk 0:01:50.7]} 12... Nxf3+
{[%clk 0:02:41.1]} 13. gxf3 {[%clk 0:01:49.7]} 13... Bxh3 {[%clk 0:02:41.8]} 14.
Re1 {[%clk 0:01:50]} 14... e5 {[%clk 0:02:40.4]} 15. Bf1 {[%clk 0:01:47.4]}
15... Bxf1 {[%clk 0:02:33.2]} 16. Kxf1 {[%clk 0:01:32.6]} 16... Nh5 {[%clk
0:02:28.3]} 17. Nd5 {[%clk 0:01:21.5]} 17... Qh4 {[%clk 0:02:26.8]} 18. Be3
{[%clk 0:01:10.1]} 18... f5 {[%clk 0:02:24.2]} 19. Nc7 {[%clk 0:00:57.3]} 19...
fxe4 {[%clk 0:02:02.8]} 20. fxe4 {[%clk 0:00:43.8]} 20... Ng3+ {[%clk
0:01:55.2]} 21. Kg2 {[%clk 0:00:33.8]} 21... Nxe4 {[%clk 0:01:54.8]} 22. Nxa8
{[%clk 0:00:04.4]} 22... Rxf2+ {[%clk 0:01:51.1]} 23. Bxf2 {[%clk 0:00:04.9]}
23... Qxf2+ {[%clk 0:01:50.8]} 24. Kh1 {[%clk 0:00:03.1]} 24... Ng3# {[%clk
0:01:50.5]} 0-1

[Event "Early-Titled-Tuesday-Blitz-March-05-2024"]
[Site "Chess.com"]
[Date "2024.03.05"]
[Round "4"]
[White "Martial2008"]
[Black "tandaleo"]
[Result "0-1"]
[WhiteElo "2646"]
[BlackElo "2481"]
[TimeControl "180+1"]
[EndTime "8:39:55 PST"]
[Termination "tandaleo won by checkmate"]

1. d4 {[%clk 0:03:00.9]} 1... f5 {[%clk 0:02:55.6]} 2. Bg5 {[%clk 0:02:51.1]}
2... Nf6 {[%clk 0:02:46.3]} 3. Bxf6 {[%clk 0:02:49.4]} 3... exf6 {[%clk
0:02:45.5]} 4. e3 {[%clk 0:02:48.4]} 4... d5 {[%clk 0:02:32.3]} 5. c4 {[%clk
0:02:47.7]} 5... Be6 {[%clk 0:02:28]} 6. cxd5 {[%clk 0:02:41.9]} 6... Bxd5
{[%clk 0:02:24.7]} 7. Nc3 {[%clk 0:02:40.9]} 7... Bb4 {[%clk 0:02:24.9]} 8. Ne2
{[%clk 0:02:38.3]} 8... O-O {[%clk 0:02:23]} 9. a3 {[%clk 0:02:36.6]} 9... Bxc3+
{[%clk 0:02:16.6]} 10. Nxc3 {[%clk 0:02:37.5]} 10... Bf7 {[%clk 0:02:03.4]} 11.
Bd3 {[%clk 0:02:36.2]} 11... f4 {[%clk 0:02:01.8]} 12. exf4 {[%clk 0:02:30.8]}
12... Re8+ {[%clk 0:02:01.7]} 13. Ne2 {[%clk 0:02:29.8]} 13... Nc6 {[%clk
0:01:55.3]} 14. O-O {[%clk 0:02:28.2]} 14... Qd6 {[%clk 0:01:51.4]} 15. Rc1
{[%clk 0:02:24.9]} 15... Rad8 {[%clk 0:01:50.7]} 16. Qc2 {[%clk 0:02:20.1]}
16... h6 {[%clk 0:01:39]} 17. Rfd1 {[%clk 0:02:15.4]} 17... Kh8 {[%clk
0:01:28.7]} 18. g3 {[%clk 0:02:04.5]} 18... Bd5 {[%clk 0:01:19.8]} 19. Qc5
{[%clk 0:01:59.1]} 19... Bf3 {[%clk 0:01:17.5]} 20. Qxd6 {[%clk 0:01:50.9]}
20... Rxd6 {[%clk 0:01:16.1]} 21. Rd2 {[%clk 0:01:51.4]} 21... Nxd4 {[%clk
0:01:05.3]} 22. Nxd4 {[%clk 0:01:51.2]} 22... Rxd4 {[%clk 0:01:05.4]} 23. Rcc2
{[%clk 0:01:30.2]} 23... Rxd3 {[%clk 0:00:59.7]} 24. Rc1 {[%clk 0:01:25]} 24...
Rxd2 {[%clk 0:00:55.7]} 25. h4 {[%clk 0:01:25.9]} 25... Ree2 {[%clk 0:00:49]}
26. g4 {[%clk 0:01:24]} 26... Rxf2 {[%clk 0:00:48.9]} 27. g5 {[%clk 0:01:19.1]}
27... Rg2+ {[%clk 0:00:42.2]} 28. Kf1 {[%clk 0:01:19.4]} 28... Rh2 {[%clk
0:00:42.6]} 29. Kg1 {[%clk 0:01:19]} 29... Rh1# {[%clk 0:00:42.7]} 0-1

[Event "Early-Titled-Tuesday-Blitz-March-05-2024"]
[Site "Chess.com"]
[Date "2024.03.05"]
[Round "4"]
[White "Crazy_girl99"]
[Black "BeyondMadness"]
[Result "1-0"]
[WhiteElo "2537"]
[BlackElo "2238"]
[TimeControl "180+1"]
[EndTime "8:39:55 PST"]
[Termination "Crazy_girl99 won by resignation"]

1. e4 {[%clk 0:03:00.9]} 1... c5 {[%clk 0:02:56.8]} 2. Nf3 {[%clk 0:03:00.7]}
2... d6 {[%clk 0:02:56.8]} 3. c4 {[%clk 0:02:59.6]} 3... Nf6 {[%clk 0:02:54.2]}
4. Nc3 {[%clk 0:02:59.6]} 4... e6 {[%clk 0:02:53.8]} 5. d4 {[%clk 0:02:59.8]}
5... cxd4 {[%clk 0:02:53.2]} 6. Nxd4 {[%clk 0:03:00.7]} 6... Be7 {[%clk
0:02:53.4]} 7. Be2 {[%clk 0:03:00.2]} 7... O-O {[%clk 0:02:54]} 8. Be3 {[%clk
0:03:00]} 8... a6 {[%clk 0:02:54.6]} 9. O-O {[%clk 0:03:00]} 9... Bd7 {[%clk
0:02:54.3]} 10. Rc1 {[%clk 0:03:00.4]} 10... Nc6 {[%clk 0:02:54.6]} 11. b3
{[%clk 0:03:00.9]} 11... Rc8 {[%clk 0:02:54.3]} 12. f3 {[%clk 0:02:57.7]} 12...
Qa5 {[%clk 0:02:49.9]} 13. Kh1 {[%clk 0:02:53]} 13... Rfd8 {[%clk 0:02:48.6]}
14. Qe1 {[%clk 0:02:48.6]} 14... Nxd4 {[%clk 0:02:36.9]} 15. Bxd4 {[%clk
0:02:48.3]} 15... e5 {[%clk 0:02:35.5]} 16. Be3 {[%clk 0:02:47]} 16... Qc7
{[%clk 0:02:31.7]} 17. a4 {[%clk 0:02:44.6]} 17... Qb8 {[%clk 0:02:29.6]} 18.
Qf2 {[%clk 0:02:39.3]} 18... Be6 {[%clk 0:02:24.9]} 19. Rfd1 {[%clk 0:02:36.5]}
19... h6 {[%clk 0:01:48.4]} 20. a5 {[%clk 0:02:34.2]} 20... Re8 {[%clk
0:01:45.3]} 21. Na4 {[%clk 0:02:31.3]} 21... Bf8 {[%clk 0:01:40.5]} 22. Nb6
{[%clk 0:02:24.6]} 22... Rcd8 {[%clk 0:01:40.6]} 23. b4 {[%clk 0:02:24.6]} 23...
Nh5 {[%clk 0:01:37.1]} 24. b5 {[%clk 0:02:17.8]} 24... Nf4 {[%clk 0:01:30.5]}
25. Bf1 {[%clk 0:02:17]} 25... g5 {[%clk 0:01:15.2]} 26. Rb1 {[%clk 0:02:14]}
26... Qc7 {[%clk 0:01:11.1]} 27. Rdc1 {[%clk 0:02:06.3]} 27... Bg7 {[%clk
0:00:57.6]} 28. Qd2 {[%clk 0:02:00.2]} 28... Kh7 {[%clk 0:00:52.1]} 29. Nd5
{[%clk 0:01:58.1]} 29... Bxd5 {[%clk 0:00:51.4]} 30. cxd5 {[%clk 0:01:57.7]}
30... Qd7 {[%clk 0:00:50.1]} 31. bxa6 {[%clk 0:01:57.6]} 31... bxa6 {[%clk
0:00:50.4]} 32. Bxa6 {[%clk 0:01:57.8]} 32... Ra8 {[%clk 0:00:50.7]} 33. Bb7
{[%clk 0:01:54]} 33... Rab8 {[%clk 0:00:46.6]} 34. a6 {[%clk 0:01:54]} 34... Qa4
{[%clk 0:00:34.3]} 35. Bc6 {[%clk 0:01:44.9]} 1-0

[Event "Early-Titled-Tuesday-Blitz-March-05-2024"]
[Site "Chess.com"]
[Date "2024.03.05"]
[Round "4"]
[White "Zq1"]
[Black "AsaHoffmann"]
[Result "1-0"]
[WhiteElo "2628"]
[BlackElo "2421"]
[TimeControl "180+1"]
[EndTime "8:39:56 PST"]
[Termination "Zq1 won by resignation"]

1. d4 {[%clk 0:03:00.9]} 1... Nf6 {[%clk 0:02:57.9]} 2. c4 {[%clk 0:03:00.9]}
2... c5 {[%clk 0:02:57.4]} 3. Nf3 {[%clk 0:03:00.1]} 3... cxd4 {[%clk
0:02:56.2]} 4. Nxd4 {[%clk 0:03:00.2]} 4... e5 {[%clk 0:02:54.6]} 5. Nb5 {[%clk
0:02:59.4]} 5... d5 {[%clk 0:02:53]} 6. cxd5 {[%clk 0:02:58.5]} 6... Bb4+ {[%clk
0:02:52]} 7. Bd2 {[%clk 0:02:54.7]} 7... Bc5 {[%clk 0:02:50.4]} 8. e3 {[%clk
0:02:45.3]} 8... Nxd5 {[%clk 0:02:32.2]} 9. Be2 {[%clk 0:02:42]} 9... Nc6 {[%clk
0:02:31.7]} 10. O-O {[%clk 0:02:41]} 10... O-O {[%clk 0:02:31.4]} 11. N1c3
{[%clk 0:02:41.1]} 11... Nf6 {[%clk 0:02:26.9]} 12. Rc1 {[%clk 0:02:35.9]} 12...
a6 {[%clk 0:02:26.3]} 13. Na3 {[%clk 0:02:26.8]} 13... Bxa3 {[%clk 0:02:15.4]}
14. bxa3 {[%clk 0:02:26.1]} 14... Qe7 {[%clk 0:02:15.5]} 15. Qb3 {[%clk
0:02:16.2]} 15... b5 {[%clk 0:02:13.2]} 16. Nd5 {[%clk 0:02:04.9]} 16... Nxd5
{[%clk 0:02:09.8]} 17. Qxd5 {[%clk 0:02:03.4]} 17... Bb7 {[%clk 0:02:00.7]} 18.
Qc5 {[%clk 0:01:56.2]} 18... Rac8 {[%clk 0:01:51.9]} 19. Bf3 {[%clk 0:01:36.1]}
19... e4 {[%clk 0:01:47.1]} 20. Bg4 {[%clk 0:01:32.3]} 20... Rcd8 {[%clk
0:01:25]} 21. Qxe7 {[%clk 0:01:29.1]} 21... Nxe7 {[%clk 0:01:24.6]} 22. Bb4
{[%clk 0:01:29.2]} 22... Rfe8 {[%clk 0:01:21.8]} 23. Rc7 {[%clk 0:01:26.3]} 1-0

[Event "Early-Titled-Tuesday-Blitz-March-05-2024"]
[Site "Chess.com"]
[Date "2024.03.05"]
[Round "4"]
[White "Alenzer"]
[Black "Cheer_Down"]
[Result "0-1"]
[WhiteElo "2174"]
[BlackElo "2410"]
[TimeControl "180+1"]
[EndTime "8:40:03 PST"]
[Termination "Cheer_Down won by checkmate"]

1. e4 {[%clk 0:02:58.7]} 1... e5 {[%clk 0:02:48]} 2. Nf3 {[%clk 0:02:58.3]} 2...
Nc6 {[%clk 0:02:47]} 3. Bb5 {[%clk 0:02:56.5]} 3... a6 {[%clk 0:02:46.7]} 4. Ba4
{[%clk 0:02:55.9]} 4... Nf6 {[%clk 0:02:46.8]} 5. O-O {[%clk 0:02:53.5]} 5...
Be7 {[%clk 0:02:45.5]} 6. d4 {[%clk 0:02:51.9]} 6... exd4 {[%clk 0:02:41.4]} 7.
Re1 {[%clk 0:02:52]} 7... b5 {[%clk 0:02:40.1]} 8. Bb3 {[%clk 0:02:51.5]} 8...
d6 {[%clk 0:02:37.7]} 9. Nxd4 {[%clk 0:02:22.8]} 9... Nxd4 {[%clk 0:02:36.1]}
10. Qxd4 {[%clk 0:02:06.4]} 10... c5 {[%clk 0:02:29.2]} 11. Qe3 {[%clk
0:01:47.1]} 11... c4 {[%clk 0:02:28.3]} 12. e5 {[%clk 0:01:46.9]} 12... dxe5
{[%clk 0:02:26.2]} 13. Qxe5 {[%clk 0:01:40]} 13... cxb3 {[%clk 0:02:24.3]} 14.
axb3 {[%clk 0:01:40]} 14... Be6 {[%clk 0:02:23.7]} 15. Rxa6 {[%clk 0:01:17.6]}
15... O-O {[%clk 0:02:14.9]} 16. Rxa8 {[%clk 0:01:12]} 16... Qxa8 {[%clk
0:02:14.5]} 17. Qxb5 {[%clk 0:01:12.2]} 17... Rc8 {[%clk 0:01:59.1]} 18. Nc3
{[%clk 0:01:11.8]} 18... Rc5 {[%clk 0:01:55.3]} 19. Qd3 {[%clk 0:01:08.9]} 19...
Bf5 {[%clk 0:01:48.5]} 20. Qd4 {[%clk 0:01:03.3]} 20... Bf8 {[%clk 0:01:47.5]}
21. Bg5 {[%clk 0:00:56.8]} 21... Bxc2 {[%clk 0:01:44.3]} 22. Bxf6 {[%clk
0:00:46.5]} 22... gxf6 {[%clk 0:01:44.5]} 23. Qxf6 {[%clk 0:00:32.8]} 23... Rf5
{[%clk 0:01:39.2]} 24. Qd4 {[%clk 0:00:24.6]} 24... Bc5 {[%clk 0:01:35.7]} 25.
Qg4+ {[%clk 0:00:23.7]} 25... Kf8 {[%clk 0:01:31.6]} 26. Re2 {[%clk 0:00:23.4]}
26... Qa1+ {[%clk 0:01:28.9]} 27. Re1 {[%clk 0:00:22.5]} 27... Qxe1# {[%clk
0:01:28.4]} 0-1

[Event "Early-Titled-Tuesday-Blitz-March-05-2024"]
[Site "Chess.com"]
[Date "2024.03.05"]
[Round "4"]
[White "GelmanAlexander"]
[Black "lilleper1"]
[Result "0-1"]
[WhiteElo "2675"]
[BlackElo "2912"]
[TimeControl "180+1"]
[EndTime "8:40:04 PST"]
[Termination "lilleper1 won by resignation"]

1. d4 {[%clk 0:02:56.4]} 1... Nf6 {[%clk 0:03:00]} 2. Nc3 {[%clk 0:02:54.8]}
2... d5 {[%clk 0:02:59.2]} 3. Bf4 {[%clk 0:02:55.3]} 3... c5 {[%clk 0:02:57.9]}
4. e3 {[%clk 0:02:55.3]} 4... cxd4 {[%clk 0:02:58.3]} 5. exd4 {[%clk 0:02:55]}
5... a6 {[%clk 0:02:58.2]} 6. Nf3 {[%clk 0:02:55.2]} 6... Bg4 {[%clk 0:02:55.1]}
7. h3 {[%clk 0:02:54.5]} 7... Bxf3 {[%clk 0:02:52.2]} 8. Qxf3 {[%clk 0:02:55.4]}
8... Nc6 {[%clk 0:02:52.2]} 9. O-O-O {[%clk 0:02:55.9]} 9... e6 {[%clk
0:02:50.8]} 10. g4 {[%clk 0:02:55.9]} 10... Bd6 {[%clk 0:02:43.2]} 11. Be3
{[%clk 0:02:51.2]} 11... Rc8 {[%clk 0:02:39.8]} 12. g5 {[%clk 0:02:50.9]} 12...
Nd7 {[%clk 0:02:38.3]} 13. h4 {[%clk 0:02:50.5]} 13... b5 {[%clk 0:02:36.7]} 14.
h5 {[%clk 0:02:47.6]} 14... O-O {[%clk 0:02:18.4]} 15. Bd3 {[%clk 0:02:37.2]}
15... Nb4 {[%clk 0:02:01.1]} 16. Bxh7+ {[%clk 0:02:26.8]} 16... Kxh7 {[%clk
0:02:01.4]} 17. g6+ {[%clk 0:02:25.8]} 17... Kg8 {[%clk 0:02:01.7]} 18. Qh3
{[%clk 0:01:55.9]} 18... Qf6 {[%clk 0:01:59.4]} 19. Rdg1 {[%clk 0:01:51.1]}
19... Qf5 {[%clk 0:01:54]} 20. Qxf5 {[%clk 0:01:27.6]} 20... exf5 {[%clk
0:01:54.9]} 21. h6 {[%clk 0:01:21.9]} 21... f4 {[%clk 0:01:49]} 22. hxg7 {[%clk
0:00:52.2]} 22... Kxg7 {[%clk 0:01:48.3]} 23. gxf7+ {[%clk 0:00:50.8]} 23...
Kxf7 {[%clk 0:01:49.2]} 24. Rh7+ {[%clk 0:00:47.9]} 24... Ke8 {[%clk 0:01:47.6]}
25. Bd2 {[%clk 0:00:46.4]} 25... Nf6 {[%clk 0:01:42.6]} 26. Ra7 {[%clk
0:00:32.2]} 26... Rf7 {[%clk 0:01:40.4]} 27. Rxf7 {[%clk 0:00:22.7]} 27... Kxf7
{[%clk 0:01:41.3]} 28. a3 {[%clk 0:00:17]} 28... Nc6 {[%clk 0:01:41.3]} 29. Ne2
{[%clk 0:00:17]} 29... f3 {[%clk 0:01:41.4]} 0-1